Cogmind - Beta 15 --- EXPLORER MODE // 2025.06.04 @ 03:25:49 Player: tcfire Result: Destroyed by Y-54 Guardian with Flak Gun Performance ------------- Evolutions (3) 1500 Regions Visited (6) 1200 Robots Destroyed (87) 435 Value Destroyed (2268) 2268 Prototype IDs (7) 140 Alien Tech Used (0) 0 Bonus (0) 0 TOTAL SCORE: 5543 Bonus ------- None Cogmind --------- Core Integrity 0/700 Matter 38/300 Energy 92/325 System Corruption 7% Temperature Cool (12) Movement Core (450) Ox8 Location -7/Factory Parts ------- > --- POWER (2) -------- Antimatter Reactor > --- PROPULSION (4) --- (None) > --- UTILITY (6) ------ Advanced Visual Processing Unit Core Analyzer Transmission Jammer Advanced ECM Suite > --- WEAPON (2) ------- Greatsword > --- INVENTORY (5) ---- (None) Peak State ------------ > --- POWER ------------ Cooled Ion Engine Cooled Ion Engine > --- PROPULSION ------- Airjet Gravmag System Gravmag System Gravmag System > --- UTILITY ---------- Improved Heat Sink Advanced Weight Redist. System Visual Processing Unit Improved Signal Interpreter ECM Suite Improved Light Armor Plating > --- WEAPON ----------- Flak Cannon Flak Cannon > --- INVENTORY -------- Weight Redist. System Matter Filter Heavy Particle Gun Improved Light Cannon [Rating: 43] Favorites ----------- Power Cooled Ion Engine Engine Cooled Ion Engine Reactor Antimatter Reactor Propulsion Airjet Leg Aluminum Leg Hover Unit Airjet Flight Unit Flight Unit Utility Visual Processing Unit Device Weight Redist. System Storage Medium Storage Unit Processor Visual Processing Unit Protection Improved Light Armor Plating Weapon Flak Cannon Energy Gun Heavy Particle Gun Ballistic Gun Light Assault Rifle Ballistic Cannon Flak Cannon Special Weapon Remote Datajack Slashing Weapon Greatsword Build | -11 -10 -9 -8 -7 -7 -7 ------- Run | Yrd Mat Mat Mat Fac Was Fac Slots Evolved 7 | . 1 2 2 2 . . Power 1 | . . . 1 . . . Propulsion 2 | . . 1 1 . . . Utility 4 | . 1 1 . 2 . . Weapon . | . . . . . . . Parts Attached 58 | 7 3 15 7 13 1 12 Power 6 | 1 . 4 . . . 1 Engine 5 | 1 . 4 . . . . Core . | . . . . . . . Reactor 1 | . . . . . . 1 Propulsion 17 | 2 3 4 1 6 . 1 Treads . | . . . . . . . Leg 2 | 2 . . . . . . Wheel . | . . . . . . . Hover 10 | . . 3 1 5 . 1 Flight 5 | . 3 1 . 1 . . Utility 25 | 2 . 5 3 6 1 8 Device 12 | . . 1 . 6 1 4 Storage 1 | 1 . . . . . . Processor 8 | 1 . 3 1 . . 3 Hackware . | . . . . . . . Protection 4 | . . 1 2 . . 1 Artifact . | . . . . . . . Weapon 10 | 2 . 2 3 1 . 2 Energy Gun 1 | . . . 1 . . . Energy Cannon . | . . . . . . . Ballistic Gun 2 | 2 . . . . . . Ballistic Cannon 5 | . . 2 2 1 . . Launcher . | . . . . . . . Special Weapon 1 | . . . . . . 1 Impact Weapon . | . . . . . . . Slashing Weapon 1 | . . . . . . 1 Piercing Weapon . | . . . . . . . Special Melee Weapon . | . . . . . . . Unidentified Prototypes 5 | . . 2 1 2 . . Parts Lost 19 | . . . 2 15 . 2 Power 2 | . . . . 2 . . Propulsion 8 | . . . 2 5 . 1 Utility 6 | . . . . 5 . 1 Weapon 3 | . . . . 3 . . Highest Loss Streak 7 | . . . 2 7 . 1 To Critical Strikes . | . . . . . . . Average Backups 2 | 1 2 4 2 3 4 3 Power . | . 1 1 . . . . Propulsion . | . . . . . . . Utility . | . 1 . . 1 2 1 Weapon 1 | . . 1 2 1 . . Tool/Special . | . . . . . . . Unused Backups 6 | . 1 2 1 1 1 . Power 2 | . . 1 . . 1 . Propulsion 4 | . 1 1 1 1 . . Utility . | . . . . . . . Weapon . | . . . . . . . Tool/Special . | . . . . . . . Average Slot Usage (%) 75 | . 85 93 79 77 12 30 Engine 11 | . 12 10 16 12 . . Leg 2 | . 21 . . . . . Hover 12 | . . 22 12 17 . 2 Flight 1 | . 4 7 . . . . Device 10 | . . 8 8 16 5 12 Storage 1 | . 10 . . . . . Processor 14 | . 12 21 16 12 7 13 Protection 4 | . . 3 8 4 . 1 Ballistic Gun 3 | . 25 4 . . . . Ballistic Cannon 11 | . . 15 15 13 . . Peak Build Rating 43 | 7 7 24 29 43 7 34 Average Rating 22 | 4 6 19 24 33 5 17 On Entrance 10 | . 7 6 24 25 7 6 Naked Turns . | . . . . . . . Heaviest Build 36 | 18 18 21 31 36 1 25 Greatest Support 44 | 20 20 30 38 44 3 8 Greatest Overweight (x) 8 | 1 . . 2 3 . 8 Average Overweight (x) . | . . . 1 . . . Largest Inventory Capacity 10 | 10 10 5 5 5 5 5 Average Capacity 5 | 9 9 5 5 5 5 5 Most Carried 5 | 5 4 5 4 5 5 5 Average Carried 2 | 1 2 4 2 3 3 4 Final Capacity 10 | 10 5 5 5 5 5 5 Final Carried 4 | 2 4 4 2 4 4 . Class Distribution -------------------- 100% | Hacker-Mutant Dominant Class ---------------- Hacker-Mutant | -10/Materials Hacker-Mutant | -9/Materials Hacker-Mutant | -8/Materials Hacker-Mutant | -7/Factory Hacker-Mutant | -7/Waste Hacker-Mutant | -7/Factory Resources | -11 -10 -9 -8 -7 -7 -7 ----------- Run | Yrd Mat Mat Mat Fac Was Fac Matter Collected 1859 | 215 123 344 456 639 72 10 Remotely . | . . . . . . . Salvage Created 2006 | . 166 560 343 882 . 55 Parts 141 | . 14 41 22 58 . 6 Haulers Intercepted 7 | . 1 2 3 1 . . Recyclers Shooed 10 | . . . 1 9 . . Parts Field Recycled . | . . . . . . . Retrieved Matter . | . . . . . . . Parts Self-Destructed . | . . . . . . . Prevented . | . . . . . . . Kills | -11 -10 -9 -8 -7 -7 -7 ------- Run | Yrd Mat Mat Mat Fac Was Fac Combat Hostiles Destroyed 59 | . 4 18 12 22 . 3 Melee 1 | . . . . . . 1 Guns 9 | . 4 2 3 . . . Cannons 46 | . . 16 9 21 . . AOE 3 | . . . . 1 . 2 Classes Destroyed 12 | . 3 4 . 5 . . Worker 7 | . . . . 6 . 1 Builder 2 | . . . . 2 . . Hauler 7 | . 1 2 3 1 . . Recycler 5 | . 1 . . 4 . . Operator 3 | . . 1 1 1 . . Watcher 4 | . . 3 . 1 . . Swarmer 27 | . 4 6 5 9 . 3 Grunt 19 | . . 8 4 7 . . Duelist 1 | . . . . 1 . . Sentry 8 | . . 4 3 1 . . Hunter 2 | . . . . 2 . . Programmer 2 | . . . . 2 . . Best Kill Streak 10 | . 6 10 8 8 . 4 Combat Bots Only 7 | . 4 7 7 5 . 3 Max Kills in Single Turn 5 | . 1 1 2 5 . 2 Gunslinging . | . . . . . . . Exploded 2 | . . . . 1 . 2 Melee 1 | . . . . . . 1 Uniques/NPCs Destroyed . | . . . . . . . Combat | -11 -10 -9 -8 -7 -7 -7 -------- Run | Yrd Mat Mat Mat Fac Was Fac Hostile Shots Fired 518 | . 13 54 47 207 . 197 Missed 205 | . 4 20 11 77 . 93 Hits 313 | . 9 34 36 130 . 104 Projectile 313 | . 9 34 36 130 . 104 Critical Strikes 5 | . . . 1 4 . . Damage Taken 2631 | . 39 213 288 1458 . 633 Core 791 | . 9 55 25 362 . 340 Absorbed by Shields . | . . . . . . . Ignored by Resistances 1605 | . 31 137 176 835 . 426 Core Remaining (%) 94 | 100 96 86 95 . . . Volleys Fired 145 | . 14 41 30 60 . . Largest 2 | . 2 2 2 2 . . Hottest 88 | . 40 70 88 74 . . Shots Fired 289 | . 28 82 59 120 . . Gun 44 | . 28 7 9 . . . Cannon 245 | . . 75 50 120 . . Launcher . | . . . . . . . Special . | . . . . . . . Kinetic 280 | . 28 82 50 120 . . Thermal 9 | . . . 9 . . . Explosive . | . . . . . . . Electromagnetic . | . . . . . . . Robot Hit Streak 21 | . 6 17 18 21 . . Robot Miss Streak 12 | . 1 5 4 12 . . Penetration Max . | . . . . . . . Secondary Targets 1 | . 1 . . . . . Max Gunslinging Chain 1 | . 1 . . . . . Shots Hit Robots 214 | . 16 59 47 90 . 2 Core Hits 239 | . 9 45 45 136 . 4 Critical Kills . | . . . . . . . Critical Parts Destroyed . | . . . . . . . Critical Strikes 7 | . . 4 2 1 . . Burn 1 | . . . 1 . . . Blast 6 | . . 4 1 1 . . Melee Attacks 4 | . . . . . . 4 Impact . | . . . . . . . Slashing 4 | . . . . . . 4 Piercing . | . . . . . . . Sneak Attacks . | . . . . . . . Combat Hostiles . | . . . . . . . Follow-up Attacks . | . . . . . . . Damage Inflicted 6091 | . 182 1221 1138 2998 . 552 Guns 374 | . 170 52 152 . . . Cannons 4016 | . . 1160 962 1894 . . Explosions 1410 | . . . . 978 . 432 Melee 113 | . . . . . . 113 Ramming 178 | . 12 9 24 126 . 7 Kinetic 4238 | . 170 1212 962 1894 . . Thermal 1130 | . . . 152 978 . . Explosive 432 | . . . . . . 432 Electromagnetic . | . . . . . . . Impact . | . . . . . . . Slashing 113 | . . . . . . 113 Piercing . | . . . . . . . Highest Corruption 7 | . . . 3 6 6 7 Average Corruption 3 | . . . 3 3 6 6 Corruption Purged . | . . . . . . . Corruption Blocked . | . . . . . . . Effects 28 | . . . 14 7 2 5 Message Errors 5 | . . . 2 1 . 2 Matter Fused 8 | . . . 3 1 2 2 Heat Flow Errors 1 | . . . 1 . . . Energy Discharges 3 | . . . 3 . . . Parts Rejected 2 | . . . 1 1 . . Parts Fused 1 | . . . . 1 . . Data Loss (minor) 5 | . . . 4 1 . . Data Loss (major) 2 | . . . . 1 . 1 Misfires 1 | . . . . 1 . . Overload Shots . | . . . . . . . Overflow Damage 384 | . . 4 15 315 . 50 Projectiles 19 | . . 4 15 . . . Explosions 365 | . . . . 315 . 50 Melee . | . . . . . . . Knockbacks 63 | . . 14 11 38 . . Impact 2 | . . . . 2 . . Kinetic 55 | . . 13 7 35 . . Secondary 6 | . . 1 4 1 . . Self-Inflicted Damage 385 | . . 4 11 237 . 133 Shots 6 | . . . . 4 . 2 Rammed 32 | . . 2 2 26 . 2 Targets Rammed 33 | . 1 2 2 26 . 2 Kicked 1 | . 1 . . . . . Crushed . | . . . . . . . Highest Temperature 433 | . 8 169 296 433 . . Average Temperature 88 | . 4 54 117 109 . . Received Heat Transfer 723 | . . 111 171 309 . 132 Effects 1 | . . . 1 . . . Energy Bleed 1 | . . . 1 . . . Siege Activations . | . . . . . . . Martial Activations . | . . . . . . . Shielding Activations . | . . . . . . . Robots Disrupted . | . . . . . . . Combat Hostiles . | . . . . . . . Robots Corrupted . | . . . . . . . Combat Hostiles . | . . . . . . . Parts Fried . | . . . . . . . Impact Corruptions . | . . . . . . . Robots Melted . | . . . . . . . Combat Hostiles . | . . . . . . . Parts Melted 1 | . . . 1 . . . Heat Transferred 970 | . . . 370 600 . . Parts Sabotaged . | . . . . . . . Parts Stolen . | . . . . . . . Parts Stripped . | . . . . . . . Power Chain Reactions . | . . . . . . . Alert | -11 -10 -9 -8 -7 -7 -7 ------- Run | Yrd Mat Mat Mat Fac Was Fac Maximum Alert Level 1 | . . 1 1 1 . . Low Security (%) 85 | 100 100 54 76 96 100 100 Level 1 14 | . . 45 23 3 . . Level 2 . | . . . . . . . Level 3 . | . . . . . . . Level 4 . | . . . . . . . Level 5 . | . . . . . . . High Security . | . . . . . . . Max Security . | . . . . . . . Peak Influence 331 | . 82 331 278 217 16 147 Initial 95 | . . 15 95 . 16 . Average 91 | . 20 151 113 94 6 35 Influence Increases 1947 | . 115 526 395 737 . 174 Destroy 0b10 Robot/C 1180 | . 80 360 240 440 . 60 Destroy 0b10 Robot/NC 140 | . 10 30 20 75 . 5 Destroy Leader 312 | . 22 110 66 104 . 10 Successful Hack 49 | . 3 10 8 16 . 12 Disable Machine 60 | . . . . 52 . 8 Destroy Structure 71 | . . 1 1 35 . 34 Lose Combat Pursuer 135 | . . 15 60 15 . 45 Influence Decreases 1840 | . 63 262 711 666 71 67 Entered New Map 313 | . . 37 221 . 55 . Time Decay 1244 | . 63 225 470 413 16 57 Lost Part 180 | . . . 20 150 . 10 Purge Threat 103 | . . . . 103 . . Squads Dispatched 13 | . . 4 . 8 . 1 Investigation 2 | . . . . 1 . 1 Extermination 1 | . . . . 1 . . Reinforcement 7 | . . 4 . 3 . . Assault . | . . . . . . . Garrison 3 | . . . . 3 . . Intercept . | . . . . . . . Searches Triggered . | . . . . . . . Construction Impeded . | . . . . . . . Haulers Reinforced . | . . . . . . . Active Scanning Responses . | . . . . . . . Cargo Convoy Interrupts 1 | . . . . 1 . . Stealth | -11 -10 -9 -8 -7 -7 -7 --------- Run | Yrd Mat Mat Mat Fac Was Fac Distress Signals 3 | . . 2 1 . . . Communications Jammed . | . . . . . . . Distress Signals . | . . . . . . . Times Spotted 106 | . 6 27 18 39 5 11 Peak Tracking Total 10 | . 3 5 10 7 5 8 Tactical Retreats 6 | . . 1 2 2 . 1 Traps | -11 -10 -9 -8 -7 -7 -7 ------- Run | Yrd Mat Mat Mat Fac Was Fac Traps Triggered 1 | . . . . 1 . . Indirectly . | . . . . . . . Trap Hack Attempts . | . . . . . . . Triggered . | . . . . . . . Disarmed 1 | . . 1 . . . . Reprogrammed 12 | . 6 . . 6 . . Reused . | . . . . . . . Traps Extracted . | . . . . . . . Installed . | . . . . . . . Triggered . | . . . . . . . Machines | -11 -10 -9 -8 -7 -7 -7 ---------- Run | Yrd Mat Mat Mat Fac Was Fac Machines Disabled 15 | . . . . 13 . 2 Max in Single Turn 7 | . . . . 7 . 1 Machines Repaired . | . . . . . . . Machines Dismantled . | . . . . . . . Machines Sabotaged . | . . . . . . . Overloaded Fab Kills . | . . . . . . . Hacking | -11 -10 -9 -8 -7 -7 -7 --------- Run | Yrd Mat Mat Mat Fac Was Fac Machines Accessed 17 | . 3 3 2 6 . 3 Terminals 16 | . 3 3 2 6 . 2 Fabricators . | . . . . . . . Repair Stations . | . . . . . . . Recycling Units . | . . . . . . . Scanalyzers . | . . . . . . . Garrison Access 1 | . . . . . . 1 Total Hacks 42 | . 7 14 4 12 . 5 Successful 27 | . 5 11 3 5 . 3 Failed 15 | . 2 3 1 7 . 2 Catastrophic 2 | . . 1 . 1 . . Database Lockouts . | . . . . . . . Manual . | . . . . . . . Terminals 40 | . 7 14 4 12 . 3 Fabricators . | . . . . . . . Repair Stations . | . . . . . . . Recycling Units . | . . . . . . . Scanalyzers . | . . . . . . . Garrison Access 2 | . . . . . . 2 Terminal Hacks 27 | . 5 11 3 5 . 3 Record 5 | . 1 3 . . . 1 Prototype ID Bank 1 | . . . . 1 . . Open DSF 2 | . . . . 1 . 1 Alert Level 2 | . . 2 . . . . Unreport Threat 1 | . . . . 1 . . Locate Traps 5 | . 1 3 1 . . . Disarm Traps 1 | . . 1 . . . . Reprogram Traps 2 | . 1 . . 1 . . Dispatch Records 1 | . . 1 . . . . Surveillance Status 1 | . . . 1 . . . Patrol Status 2 | . . 1 . . . 1 Recall Assault 1 | . . . . 1 . . Hauler Manifests 1 | . . . 1 . . . Zone Layout 2 | . 2 . . . . . Fabricator Hacks . | . . . . . . . Repair Station Hacks . | . . . . . . . Recycling Unit Hacks . | . . . . . . . Scanalyzer . | . . . . . . . Garrison Access Hacks . | . . . . . . . Unauthorized Hacks . | . . . . . . . Terminals . | . . . . . . . Fabricators . | . . . . . . . Repair Stations . | . . . . . . . Recycling Units . | . . . . . . . Scanalyzers . | . . . . . . . Garrison Access . | . . . . . . . Data Cores Recovered 3 | . . 1 1 1 . . Used 1 | . . . . 1 . . Hacking Detections 13 | . 2 2 2 5 . 2 Full Trace Events 3 | . 1 . . 1 . 1 Feedback Events 1 | . . . . . . 1 Corruption 1 | . . . . . . 1 Feedback Blocked . | . . . . . . . Robot Schematics Acquired . | . . . . . . . Robots Built . | . . . . . . . Authchips . | . . . . . . . Time . | . . . . . . . Total Robot Build Rating . | . . . . . . . Part Schematics Acquired . | . . . . . . . Parts Built . | . . . . . . . Authchips . | . . . . . . . Time . | . . . . . . . Total Part Build Rating . | . . . . . . . Parts Repaired . | . . . . . . . Time . | . . . . . . . Parts Recycled . | . . . . . . . Recycled Matter . | . . . . . . . Retrieved Matter . | . . . . . . . Retrieved Components . | . . . . . . . Parts Scanalyzed . | . . . . . . . Part Schematics Acquired . | . . . . . . . Parts Damaged . | . . . . . . . Bothacking | -11 -10 -9 -8 -7 -7 -7 ------------ Run | Yrd Mat Mat Mat Fac Was Fac Used RIF Installer . | . . . . . . . Robots Hacked . | . . . . . . . Non-combat . | . . . . . . . Combat . | . . . . . . . Robot Hacks Applied . | . . . . . . . Relay Couplers Released . | . . . . . . . Fabnet Peak Effective % . | . . . . . . . Robots Rewired . | . . . . . . . Allies Hacked . | . . . . . . . Hacks Repelled . | . . . . . . . Allies | -11 -10 -9 -8 -7 -7 -7 -------- Run | Yrd Mat Mat Mat Fac Was Fac Total Allies . | . . . . . . . Largest Group . | . . . . . . . Highest-Rated Group . | . . . . . . . Highest-Rated Ally . | . . . . . . . Total Orders . | . . . . . . . Ally Attacks . | . . . . . . . Total Damage . | . . . . . . . Kills . | . . . . . . . Allies Corrupted . | . . . . . . . Allies Melted . | . . . . . . . Intel | -11 -10 -9 -8 -7 -7 -7 ------- Run | Yrd Mat Mat Mat Fac Was Fac Active Infowar (turns) 1767 | . . 121 763 653 52 178 Optics 1763 | . . 121 763 653 52 174 Sensors 219 | . . . . . 51 168 Jamming 11 | . . . . . . 11 ECM 228 | . . . . 223 . 5 Robot Analysis Total . | . . . . . . . Derelict Logs Recovered . | . . . . . . . Drone Launches . | . . . . . . . Drone Recoveries . | . . . . . . . Exploration | -11 -10 -9 -8 -7 -7 -7 ------------- Run | Yrd Mat Mat Mat Fac Was Fac Turns Passed 2312 | 67 236 313 763 682 52 199 Spaces Moved 2008 | 40 197 321 477 633 95 245 Core 322 | 10 . 4 . 49 95 164 Treads . | . . . . . . . Legs 165 | 30 135 . . . . . Wheels . | . . . . . . . Hover 1342 | . . 200 477 584 . 81 Flight 179 | . 62 117 . . . . Fastest Speed 34 | 50 37 34 48 48 50 50 Average Speed 80 | 128 93 45 136 62 50 58 Slowest Speed 450 | 190 120 56 180 200 50 450 Overloaded Moves . | . . . . . . . Propulsion Burnouts . | . . . . . . . Robots Hopped 1 | . . 1 . . . . Potential Cave-ins . | . . . . . . . Cave-ins Triggered . | . . . . . . . Exploration Rate (%) 34 | 4 42 46 51 19 74 8 Regions Visited 6 Branch Regions . Pre-discovered Areas . | . . . . . . . Known Exits Taken 4 | 1 1 1 1 . . . Unknown Exits Taken . | . . . . . . . Scrap Searched . | . . . . . . . Spaces Dug . | . . . . . . . Terrain Destroyed 84 | . . 1 1 40 . 42 Melee . | . . . . . . . Projectile 2 | . . 1 1 . . . AOE 82 | . . . . 40 . 42 Terrain Rammed . | . . . . . . . Walls Destroyed . | . . . . . . . Machines Disabled . | . . . . . . . Actions | -11 -10 -9 -8 -7 -7 -7 --------- Run | Yrd Mat Mat Mat Fac Was Fac Total 2415 | 55 223 409 528 798 100 302 Wait 44 | . . . 1 35 . 8 Move 2001 | 39 196 318 476 633 94 245 Hop 1 | . . 1 . . . . Pick Up 69 | 9 5 18 5 18 2 12 Fast Attach . | . . . . . . . Attach 54 | 7 2 9 3 14 1 18 Detach 6 | . . . . 2 1 3 Swap 16 | . 1 6 6 3 . . Drop 42 | . 4 14 5 7 2 10 Fire 145 | . 14 41 30 60 . . Melee 4 | . . . . . . 4 Ram 32 | . . 2 2 26 . 2 Kick 1 | . 1 . . . . . Crush . | . . . . . . . Escape Stasis . | . . . . . . . Rewire . | . . . . . . . Trap . | . . . . . . . Miscellaneous . | . . . . . . . Route ------- -11/Scrapyard -10/Materials (discovered 2 exits: *Mat / *Min) -9/Materials (discovered 3 exits: *Mat / *Min x2) -8/Materials -7/Factory -7/Waste -7/Factory History --------- Turn | Location | Event 5 | -11/Scrapyard | Identified exit to Materials 5 | -11/Scrapyard | Discovered exit to Materials (range 16) 68 | -11/Scrapyard | Entered Materials 68 | -10/Materials | Evolved 1 slot: Utility x1 187 | -10/Materials | Identified exit to Mines 187 | -10/Materials | Discovered exit to Mines (range 16) 300 | -10/Materials | Identified exit to Materials 300 | -10/Materials | Discovered exit to Materials (range 13) 304 | -10/Materials | Entered another Materials area 304 | -9/Materials | Evolved 2 slots: Propulsion x1, Utility x1 344 | -9/Materials | Identified exit to Mines 344 | -9/Materials | Discovered exit to Mines (range 6) 350 | -9/Materials | Build established: Hacker-Mutant 499 | -9/Materials | Destroyed 7 combat bots 544 | -9/Materials | Discovered exit to Mines (range 8) 609 | -9/Materials | Identified exit to Materials 609 | -9/Materials | Discovered exit to Materials (range 16) 617 | -9/Materials | Entered another Materials area 617 | -8/Materials | Evolved 2 slots: Power x1, Propulsion x1 756 | -8/Materials | Destroyed 7 combat bots 1362 | -8/Materials | Identified exit to Factory 1362 | -8/Materials | Discovered exit to Factory (range 7) 1380 | -8/Materials | Entered Factory 1380 | -7/Factory | Evolved 2 slots: Utility x2 1506 | -7/Factory | Garrison activated, responded to threat 1866 | -7/Factory | Lost 4 parts (2n2u) 1969 | -7/Factory | Lost 3 parts (1p1n1w) 2023 | -7/Factory | Cargo convoy interrupted 2056 | -7/Factory | Core integrity fell below 50% 2062 | -7/Factory | Sucked down chute 2062 | -7/Factory | Entered Waste 2069 | -7/Waste | Lost 7 parts (1p1n3u2w) 2070 | -7/Waste | Spotted C-40 Crusher 2072 | -7/Waste | Spotted C-40 Crusher 2094 | -7/Waste | Spotted C-40 Crusher 2095 | -7/Waste | Spotted C-40 Crusher 2101 | -7/Waste | Spotted C-40 Crusher 2107 | -7/Waste | Spotted C-40 Crusher 2109 | -7/Waste | Identified exit to Factory 2109 | -7/Waste | Discovered exit to Factory (range 11) 2114 | -7/Waste | Entered Factory 2270 | -7/Factory | Core integrity fell below 20% 2313 | -7/Factory | Destroyed by Y-54 Guardian with Flak Gun Last Messages --------------- K-01 Serf destroyed. Dropped Greatsword. The unstable cave ceiling collapses. Acquired Greatsword. Dropped Lyr. Light Armor Plating. Dropped Remote Datajack. Dropped Imp. Cooling System. Acquired Lyr. Light Armor Plating. The unstable cave ceiling collapses. Dropped Lyr. Light Armor Plating. Acquired Remote Datajack. Imp. Sensor Array destroyed. The unstable cave ceiling collapses. Acquired 10 matter. System corrupted: Substantial component data lost. Connecting with Garrison Access... Feedback: System corruption (+1%). ALERT: Suspicious activity at Garrison Access F002. Dispatching Investigation squad. Dropped Remote Datajack. Map ----- +----------------------------------------------------+ | #??# ##????? | | #?## ##???? | | ?##########+####### #?# ## #???? | | ?????????# ###### ### !!# ##### | | ?????????# #????# ## ! # | | ?????????# """ #????# ## # | | ?????????# """ #????# ## = " " # | | ?????????# """ #????# ## % " " # | | ?????????# ##???# ### # = " " # | | ?????????# #???# #### " " # | | ?????????# != ##???# #?# + " " # | | ?????????# !== #????# #?### # " " # | | ?????????# != #????# #???# #### # " " !# | | ?????????# #????# #???# T#?# # " " # | | ?????????#+#######????# #???# #?# # " " # | | ?????????# #??????????# #???# ##?# # # | | ?????????# #??????????# #???# #??# # ! # | | ?????????# ######?????# #???# ####+######## | | ?????????# # ####### ##### # #?? | | ?????????# # # # #?? | | #######??# + # ########### # ] *#?? | | #??# # #??# / " #?? | | #### #!! #??# """" g# # "" "" #?? | | + # ! #??# """" Y # # ""R"" #?? | | # #!! #??# """"Y""# # """" #?? | | ! # # #??# """"@""# # ]#?? | | + + #??# """" |G# ###########?? | | #### ######??# """" ""# #???????????? | | #??# #???????# """" ""# ???????????? | | #######??# ???????# # ??????????? | | ?????????####??????########## ??????????? | | ????????????????????????????# ""?????????? | | ????????????????????????????# ""?????????? | | #???????????????????????????# "??????????? | | #???????????????????????????# ??????????? | | #??????????????????????????? ??????????? | | #???????????????????????????# ??????????? | | #???????????????????????????#######?????????? | | #???????????????????????????????????????????? | | #???????????????????????????????????????????? | | ##############??????????????????????????????? | | # #??????????????????????????????? | | # """ #??????????????????????????????? | | # """"" /! #??????????????????????????????? | | # """"" !! #??????????????????????????????? | | # #??????????????????????????????? | | # """ #??????????????????????????????? | | # """"" ###????????????????????????????? | | # """"" # ????????????????????????????? | | + # #????????????????????????????? | +----------------------------------------------------+ Best States ------------- Heat Dissipation 62 Energy Generation 23 Energy Capacity 460 Matter Stores 300 Matter Capacity 300 Sight Range 20 Robot Scan Range 15 Terrain Scan Density 85 ECM Strength 2 Jamming Range 12 Additional Mass Support 9 Armor Coverage 150 Resistance: KI 35 Resistance: TH 35 Resistance: EX 35 Resistance: EM 35 Resistance: I 35 Resistance: S 35 Resistance: P 35 Evasion (%) 63 Targeting Accuracy 5 Core Analysis 6 Matter Filtering 30 Offensive Hacking 20 Item Schematics ----------------- None Robot Schematics ------------------ None Fabricated ------------ Nothing Repaired ---------- Nothing Alien Tech Used ----------------- None Achievements -------------- Dynamic Key Challenges ------------ None Game ------ Seed ProtonZioniteWeb Manual? 0 Play Time 00:29:09 Cumulative 29.1 hours Start 2025.06.04 @ 02:57:39 End 2025.06.04 @ 03:25:49 Sessions 1 Manual Loads 0 Difficulty Explorer Special Mode None Game No. 31 Rogue 0 Adventurer 0 Explorer 31 Win Type - Total 0 Types 0/0/0/0/0/0/0/0/0/0 Lore% 13 Gallery% 36 Achievement% 36 Wizard Run 0 Options --------- Layout 1 ASCII 0 Keyboard 0 Movement Mouse Keybinds 0 Fullscreen 1 Font 42/SmallcapsGlow Map View 52x41 Zoom Use 0% Tactical HUD 0 Map Filters NONE Filters NONE Steam 1 RUN: 5ece0858-5ef5-427b-9737-5d8e2d1288d4